fUSD/lending_fUSD_20240516
["ID","MTS","AMOUNT","RATE_DAILY","PERIOD"]
[327118744,1715841511099,141.56,8.219e-05,2]
[327118745,1715841511122,97.33,8.219e-05,2]
[327118754,1715841687259,52.67,8.219e-05,2]
[327118755,1715841687280,131.5,8.219e-05,2]
[327118763,1715841992518,18.5,8.219e-05,2]
[327118764,1715841992544,208.44,8.219e-05,2]
[327118790,1715842199878,1521.28441544,8.464e-05,2]
[327118806,1715842232612,-523.16611257,8.561e-05,2]
[327118807,1715842232622,-76.83388743,8.562e-05,2]
[327118808,1715842232634,-325.11922435,8.562e-05,2]
[327118809,1715842232643,-234.15716962,8.562e-05,2]
[327118810,1715842232652,-440.72360603,8.562e-05,2]
[327118811,1715842232664,-875.52271808,8.562e-05,2]
[327118812,1715842232676,-344.1262584,8.562e-05,2]
[327118813,1715842232687,-1299.4208445,8.562e-05,2]
[327118814,1715842232698,-40.20657299,8.562e-05,2]
[327118815,1715842232707,-939.10970596,8.563e-05,2]
[327118816,1715842232717,-155.0,8.563e-05,2]
[327118817,1715842232726,-107.14394105,8.563e-05,2]
[327118818,1715842232737,-69.35639935,8.563e-05,2]
[327118819,1715842232747,-400.47138065,8.563e-05,2]
[327118820,1715842232758,-1784.956596,8.563e-05,2]
[327118821,1715842232767,-3027.17182449,8.564e-05,2]
[327118822,1715842232776,-161.96187779,8.564e-05,2]
[327118823,1715842232785,-2361.52496939,8.564e-05,2]
[327118824,1715842232795,-250.0,9.862e-05,2]
[327118825,1715842232804,-1840.78,9.913e-05,2]
[327118826,1715842232813,-400.0,9.914e-05,2]
[327118827,1715842232823,-11867.2,9.92e-05,2]
[327118828,1715842232833,-499.99,9.92e-05,2]
[327118829,1715842232844,-600.0,9.931e-05,2]
[327118830,1715842232854,-279.26,9.931e-05,2]
[327118831,1715842232864,-250.0,9.958e-05,2]
[327118832,1715842232873,-712.5895165,0.0001014,2]
[327118833,1715842232883,-156.12,0.00010141,2]
[327118834,1715842232892,-562.44,0.00010469,2]
[327118835,1715842232901,-226.94,0.00010472,2]
[327118836,1715842232911,-600.0,0.00010506,2]
[327118837,1715842232920,-328.67770951,0.000106,2]
[327118838,1715842232929,-1559.65,0.00010602,2]
[327118839,1715842232939,-150.0,0.00010603,2]
[327118841,1715842232948,-150.0,0.00010603,2]
[327118843,1715842232957,-1559.65,0.00010605,2]
[327118844,1715842232967,-1559.65,0.00010607,2]
[327118846,1715842232976,-1559.65,0.0001061,2]
[327118848,1715842232986,-1559.65,0.00010613,2]
[327118849,1715842232996,-1559.65,0.00010616,2]
[327118850,1715842233007,-1559.65,0.00010619,2]
[327118851,1715842233018,-150.0,0.00010619,2]
[327118852,1715842233028,-1559.65,0.00010621,2]
[327118853,1715842233038,-1559.65,0.00010624,2]
[327118854,1715842233047,-1559.65,0.00010627,2]
[327118855,1715842233057,-1559.65,0.0001063,2]
[327118856,1715842233068,-800.0,0.0001063,2]
[327118857,1715842233077,-1559.65,0.00010633,2]
[327118858,1715842233088,-1559.65,0.00010635,2]
[327118859,1715842233098,-1559.65,0.00010638,2]
[327118860,1715842233107,-1559.65,0.00010641,2]
[327118861,1715842233117,-1559.65,0.00010644,2]
[327118862,1715842233126,-1559.65,0.00010647,2]
[327118863,1715842233135,-1559.65,0.00010649,2]
[327118864,1715842233146,-1559.65,0.00010652,2]
[327118865,1715842233157,-1559.65,0.00010655,2]
[327118866,1715842233167,-150.0,0.00010668,2]
[327118867,1715842233176,-800.0,0.00010685,2]
[327118868,1715842233186,-800.0,0.00010712,2]
[327118869,1715842233196,-150.0,0.00010734,2]
[327118870,1715842233206,-150.0,0.00010799,2]
[327118871,1715842233216,-150.0,0.00010865,2]
[327118872,1715842233227,-1625.34508013,0.00010901,6]
[327118873,1715842233240,-450.0,0.00010901,6]
[327118874,1715842233253,-6322.37491987,0.00010901,6]
[327118875,1715842233262,-150.0,0.0001093,2]
[327118876,1715842233271,-150.0,0.00010995,2]
[327118877,1715842233280,-73.60225164,0.00011052,2]
[327118878,1715842233568,-369.95948262,0.00011052,2]
[327118879,1715842233580,-54.12826574,0.00011052,2]
[327118880,1715842233590,-150.0,0.00011061,2]
[327118881,1715842233599,-150.0,0.00011126,2]
[327118882,1715842233609,-113.37173426,0.00011154,2]
[327118891,1715842238723,-782.3604175,8.56e-05,2]
[327118892,1715842238732,-286.62826574,0.00011154,2]
[327118893,1715842238742,-600.0,0.00011172,2]
[327118894,1715842238752,-2939.95210444,0.00011179,2]
[327118895,1715842238761,-26478.92650639,0.0001118,2]
[327118896,1715842238771,-150.0,0.00011192,2]
[327118897,1715842238781,-262.37253786,0.00011203,2]
[327118898,1715842238790,-150.0,0.00011257,2]
[327118899,1715842238799,-150.0,0.00011323,2]
[327118900,1715842238808,-600.0,0.00011328,2]
[327118901,1715842238817,-150.0,0.00011388,2]
[327118902,1715842238827,-150.0,0.00011454,2]
[327118903,1715842238836,-150.0,0.00011519,2]
[327118904,1715842238852,-150.22115182,0.00011578,2]
[327118905,1715842238862,-2500.0,0.00011579,2]
[327118906,1715842238872,-150.0,0.00011584,2]
[327118907,1715842238883,-1564.1179518,0.00011596,2]
[327118908,1715842238892,-1037.98964315,0.00011597,3]
[327118910,1715842238901,-450.0,0.00011598,2]
[327118912,1715842238911,-1000.0,0.00011598,2]
[327118913,1715842238920,-19603.71520492,0.000116,2]
[327118914,1715842238930,-150.22115179,0.00011607,2]
[327118915,1715842238939,-2698.70886794,0.00011613,2]
[327118916,1715842238949,-150.22115179,0.00011637,2]
[327118917,1715842238959,-150.0,0.0001165,2]
[327118918,1715842238969,-150.22115179,0.00011666,2]
[327118919,1715842238980,-185.7653965,0.00011667,2]
[327118923,1715842239124,-212.57,0.00011667,2]
[327118924,1715842239139,-212.57,0.00011667,2]
[327118925,1715842239148,-212.57,0.00011667,2]
[327118926,1715842239157,-247.15825627,0.00011668,2]
[327118927,1715842239167,-212.57,0.00011668,2]
[327118928,1715842239176,-1244.2402654,0.00011675,2]
[327118929,1715842239186,-247.15825626,0.00011676,2]
[327118930,1715842239195,-591.07,0.00011676,2]
[327118931,1715842239205,-591.07,0.00011676,2]
[327118932,1715842239214,-591.07,0.00011676,2]
[327118933,1715842239223,-505.49180207,0.00011676,2]
[327118934,1715842239233,-607.95,0.00011676,2]
[327118935,1715842239242,-607.95,0.00011676,2]
[327118936,1715842239252,-607.95,0.00011676,2]
[327118937,1715842239261,-555669.45210987,0.00011677,2]
[327118938,1715842239275,-132485.54580781,0.00011677,2]
[327118939,1715842239285,-11513.67270615,0.00011678,2]
[327118940,1715842239294,-13643.21276648,0.0001168,2]
[327118941,1715842239304,-212.57,0.00011683,2]
[327118942,1715842239314,-247.15825626,0.00011684,2]
[327118943,1715842239323,-488.28130774,0.0001169,2]
[327118944,1715842239333,-377.7267044,0.0001169,2]
[327118945,1715842239343,-356.07619577,0.0001169,2]
[327118946,1715842239352,-3086.33164394,0.0001169,2]
[327118947,1715842239362,-236.9968587,0.0001169,2]
[327118948,1715842239371,-378.33602549,0.00011691,2]
[327118949,1715842239380,-500.0,0.00011691,2]
[327118950,1715842239390,-500.0,0.00011691,2]
[327118951,1715842239399,-500.0,0.00011691,2]
[327118952,1715842239408,-500.0,0.00011691,2]
[327118953,1715842239417,-500.0,0.00011691,2]
[327118954,1715842239427,-500.0,0.00011691,2]
[327118955,1715842239436,-843.7,0.00011691,2]
[327118956,1715842239445,-901.82,0.00011691,2]
[327118957,1715842239454,-843.7,0.00011691,2]
[327118958,1715842239464,-901.82,0.00011691,2]
[327118959,1715842239473,-843.7,0.00011691,2]
[327118960,1715842239482,-901.82,0.00011691,2]
[327118961,1715842239492,-500.0,0.00011691,2]
[327118962,1715842239501,-500.0,0.00011691,2]
[327118963,1715842239510,-500.0,0.00011691,2]
[327118964,1715842239519,-500.0,0.00011691,2]
[327118965,1715842239528,-500.0,0.00011691,2]
[327118966,1715842239538,-500.0,0.00011691,2]
[327118967,1715842239547,-1481.26,0.00011691,2]
[327118968,1715842239556,-1481.26,0.00011691,2]
[327118969,1715842239566,-1481.26,0.00011691,2]
[327118970,1715842239575,-893.15,0.00011691,2]
[327118971,1715842239584,-893.15,0.00011691,2]
[327118972,1715842239595,-893.15,0.00011691,2]
[327118973,1715842239604,-600.46,0.00011691,2]
[327118974,1715842239613,-600.46,0.00011691,2]
[327118975,1715842239623,-600.46,0.00011691,2]
[327118976,1715842239632,-1309.08,0.00011691,2]
[327118977,1715842239643,-1309.08,0.00011691,2]
[327118978,1715842239652,-1309.08,0.00011691,2]
[327118979,1715842239662,-3205.88,0.00011691,2]
[327118980,1715842239672,-3205.88,0.00011691,2]
[327118981,1715842239681,-3205.88,0.00011691,2]
[327118982,1715842239691,-634.62,0.00011691,2]
[327118983,1715842239700,-634.62,0.00011691,2]
[327118984,1715842239709,-634.62,0.00011691,2]
[327118985,1715842239719,-500.0,0.00011691,2]
[327118986,1715842239728,-500.0,0.00011691,2]
[327118987,1715842239737,-500.0,0.00011691,2]
[327118988,1715842239747,-3060.81,0.00011691,2]
[327118989,1715842239756,-3060.81,0.00011691,2]
[327118990,1715842239765,-3060.81,0.00011691,2]
[327118991,1715842239774,-1728.51,0.00011691,2]
[327118992,1715842239783,-1852.87,0.00011691,2]
[327118993,1715842239792,-1728.51,0.00011691,2]
[327118994,1715842239802,-1852.87,0.00011691,2]
[327118995,1715842239811,-1728.51,0.00011691,2]
[327118996,1715842239820,-1852.87,0.00011691,2]
[327118997,1715842239830,-1323.61,0.00011691,2]
[327118998,1715842239841,-595.54,0.00011691,2]
[327118999,1715842239854,-1323.61,0.00011691,2]
[327119000,1715842239863,-595.54,0.00011691,2]
[327119001,1715842239873,-1323.61,0.00011691,2]
[327119002,1715842239883,-595.54,0.00011691,2]
[327119003,1715842239895,-1034.62,0.00011691,2]
[327119004,1715842239904,-1034.62,0.00011691,2]
[327119005,1715842239919,-1034.62,0.00011691,2]
[327119006,1715842239930,-650.26,0.00011691,2]
[327119007,1715842239940,-650.26,0.00011691,2]
[327119008,1715842239950,-650.26,0.00011691,2]
[327119009,1715842239960,-500.0,0.00011691,2]
[327119010,1715842239970,-500.0,0.00011691,2]
[327119011,1715842239980,-500.0,0.00011691,2]
[327119012,1715842239989,-247.15825626,0.00011691,2]
[327119013,1715842239999,-591.07,0.00011692,2]
[327119014,1715842240009,-607.95,0.00011692,2]
[327119015,1715842240018,-1000.0,0.00011692,2]
[327119016,1715842240028,-7500.0,0.00011692,2]
[327119017,1715842240038,-10000.0,0.00011692,2]
[327119018,1715842240047,-500.0,0.00011693,2]
[327119019,1715842240057,-500.0,0.00011693,2]
[327119020,1715842240067,-500.0,0.00011693,2]
[327119021,1715842240076,-1087.35,0.00011693,2]
[327119022,1715842240088,-1087.35,0.00011693,2]
[327119023,1715842240098,-500.0,0.00011693,2]
[327119024,1715842240108,-1087.35,0.00011693,2]
[327119025,1715842240117,-500.0,0.00011693,2]
[327119026,1715842240127,-500.0,0.00011693,2]
[327119027,1715842240137,-500.0,0.00011693,2]
[327119028,1715842240147,-500.0,0.00011693,2]
[327119029,1715842240156,-500.0,0.00011693,2]
[327119030,1715842240165,-500.0,0.00011693,2]
[327119031,1715842240175,-178.56021055,0.00011693,2]
[327119032,1715842240185,-8358.8,0.00011693,2]
[327119033,1715842240195,-8358.8,0.00011693,2]
[327119034,1715842240205,-8358.8,0.00011693,2]
[327119035,1715842240215,-1109.83,0.00011693,2]
[327119036,1715842240224,-1109.83,0.00011693,2]
[327119037,1715842240234,-1109.83,0.00011693,2]
[327119038,1715842240244,-873.3,0.00011693,2]
[327119039,1715842240253,-873.3,0.00011693,2]
[327119040,1715842240263,-873.3,0.00011693,2]
[327119042,1715842240274,-961.2,0.00011693,2]
[327119044,1715842240284,-961.2,0.00011693,2]
[327119046,1715842240294,-961.2,0.00011693,2]
[327119048,1715842240304,-569.11,0.00011693,2]
[327119050,1715842240313,-569.11,0.00011693,2]
[327119052,1715842240324,-569.11,0.00011693,2]
[327119054,1715842240333,-1735.53,0.00011693,2]
[327119056,1715842240342,-1735.53,0.00011693,2]
[327119058,1715842240352,-1735.53,0.00011693,2]
[327119060,1715842240362,-832.43,0.00011693,2]
[327119062,1715842240372,-832.43,0.00011693,2]
[327119064,1715842240381,-832.43,0.00011693,2]
[327119066,1715842240391,-805.67,0.00011693,2]
[327119068,1715842240402,-805.67,0.00011693,2]
[327119070,1715842240412,-805.67,0.00011693,2]
[327119072,1715842240422,-1117.59,0.00011693,2]
[327119074,1715842240431,-1117.59,0.00011693,2]
[327119076,1715842240441,-1117.59,0.00011693,2]
[327119079,1715842240452,-577.34,0.00011693,2]
[327119081,1715842240462,-577.34,0.00011693,2]
[327119083,1715842240472,-577.34,0.00011693,2]
[327119085,1715842240482,-500.0,0.00011693,2]
[327119087,1715842240492,-500.0,0.00011693,2]
[327119089,1715842240502,-500.0,0.00011693,2]
[327119091,1715842240513,-5042.22,0.00011693,2]
[327119093,1715842240523,-5042.22,0.00011693,2]
[327119095,1715842240532,-5042.22,0.00011693,2]
[327119097,1715842240542,-921.22,0.00011693,2]
[327119099,1715842240552,-921.22,0.00011693,2]
[327119101,1715842240562,-921.22,0.00011693,2]
[327119103,1715842240573,-961.32,0.00011693,2]
[327119105,1715842240583,-961.32,0.00011693,2]
[327119107,1715842240594,-961.32,0.00011693,2]
[327119109,1715842240604,-1559.25,0.00011693,2]
[327119111,1715842240614,-1559.25,0.00011693,2]
[327119113,1715842240624,-1559.25,0.00011693,2]
[327119115,1715842240634,-500.0,0.00011693,2]
[327119117,1715842240645,-500.0,0.00011693,2]
[327119119,1715842240655,-500.0,0.00011693,2]
[327119121,1715842240664,-995.62,0.00011693,2]
[327119123,1715842240674,-995.62,0.00011693,2]
[327119125,1715842240684,-995.62,0.00011693,2]
[327119128,1715842240694,-500.0,0.00011693,2]
[327119130,1715842240705,-500.0,0.00011693,2]
[327119132,1715842240714,-500.0,0.00011693,2]
[327119134,1715842240725,-2199.6,0.00011693,2]
[327119136,1715842240734,-2199.6,0.00011693,2]
[327119138,1715842240743,-2199.6,0.00011693,2]
[327119139,1715842240752,-500.0,0.00011693,2]
[327119140,1715842240762,-500.0,0.00011693,2]
[327119141,1715842240772,-500.0,0.00011693,2]
[327119142,1715842240782,-749.59,0.00011693,2]
[327119143,1715842240792,-749.59,0.00011693,2]
[327119144,1715842240803,-749.59,0.00011693,2]
[327119146,1715842240813,-626.45,0.00011693,2]
[327119147,1715842240823,-626.45,0.00011693,2]
[327119149,1715842240833,-1329.46,0.00011693,2]
[327119151,1715842240956,-626.45,0.00011693,2]
[327119152,1715842240965,-1329.46,0.00011693,2]
[327119153,1715842240975,-1329.46,0.00011693,2]
[327119154,1715842240984,-500.0,0.00011693,2]
[327119155,1715842240993,-500.0,0.00011693,2]
[327119156,1715842241003,-500.0,0.00011693,2]
[327119157,1715842241013,-500.0,0.00011693,2]
[327119158,1715842241022,-500.0,0.00011693,2]
[327119159,1715842241032,-500.0,0.00011693,2]
[327119160,1715842241041,-500.0,0.00011693,2]
[327119161,1715842241051,-500.0,0.00011693,2]
[327119162,1715842241060,-500.0,0.00011693,2]
[327119163,1715842241069,-805.76,0.00011693,2]
[327119164,1715842241079,-805.76,0.00011693,2]
[327119165,1715842241088,-805.76,0.00011693,2]
[327119166,1715842241097,-1346.55,0.00011693,2]
[327119167,1715842241107,-1346.55,0.00011693,2]
[327119168,1715842241117,-1346.55,0.00011693,2]
[327119169,1715842241127,-500.0,0.00011693,2]
[327119170,1715842241143,-500.0,0.00011693,2]
[327119171,1715842241152,-500.0,0.00011693,2]
[327119172,1715842241162,-9925.51901622,0.00011695,2]
[327119173,1715842241171,-326.20248532,0.00011695,2]
[327119174,1715842241180,-150.22115179,0.00011695,2]
[327119175,1715842241189,-34191.779,0.00011695,2]
[327119176,1715842241199,-9925.51901621,0.00011698,2]
[327119177,1715842241208,-326.20248531,0.00011698,2]
[327119178,1715842241218,-247.15825626,0.00011699,2]
[327119179,1715842241227,-9925.51901621,0.000117,2]
[327119180,1715842241236,-326.20248531,0.000117,2]
[327119181,1715842241245,-150.0,0.00011715,2]
[327119182,1715842241255,-500.0,0.00011729,2]
[327119183,1715842241264,-500.0,0.00011729,2]
[327119184,1715842241274,-843.7,0.00011729,2]
[327119185,1715842241284,-901.82,0.00011729,2]
[327119186,1715842241293,-500.0,0.00011729,2]
[327119187,1715842241303,-500.0,0.00011729,2]
[327119188,1715842241312,-1481.26,0.00011729,2]
[327119189,1715842241321,-893.15,0.00011729,2]
[327119190,1715842241330,-600.46,0.00011729,2]
[327119191,1715842241339,-1309.08,0.00011729,2]
[327119192,1715842241349,-3205.88,0.00011729,2]
[327119193,1715842241358,-634.62,0.00011729,2]
[327119194,1715842241368,-500.0,0.00011729,2]
[327119195,1715842241377,-3060.81,0.00011729,2]
[327119196,1715842241386,-1852.87,0.00011729,2]
[327119197,1715842241400,-1728.51,0.00011729,2]
[327119198,1715842241409,-1323.61,0.00011729,2]
[327119199,1715842241419,-595.54,0.00011729,2]
[327119200,1715842241429,-1034.62,0.00011729,2]
[327119201,1715842241439,-650.26,0.00011729,2]
[327119203,1715842241449,-500.0,0.00011729,2]
[327119204,1715842241460,-212.57,0.00011758,2]
[327119206,1715842241469,-591.07,0.00011767,2]
[327119208,1715842241479,-607.95,0.00011767,2]
[327119210,1715842241488,-500.0,0.00011768,2]
[327119212,1715842241497,-500.0,0.00011768,2]
[327119215,1715842241508,-500.0,0.00011768,2]
[327119217,1715842241517,-507.11047907,0.00011768,2]
[327119219,1715842241526,-500.0,0.00011768,2]
[327119221,1715842241536,-326.88173788,0.00011768,2]
[327119223,1715842241545,-500.0,0.00011768,2]
[327119224,1715842241553,-500.0,0.00011768,2]
[327119227,1715842241563,-500.0,0.00011768,2]
[327119229,1715842241572,-500.0,0.00011768,2]
[327119231,1715842241582,-500.0,0.00011768,2]
[327119232,1715842241591,-500.0,0.00011768,2]
[327119235,1715842241601,-500.0,0.00011768,2]
[327119237,1715842241610,-500.0,0.00011768,2]
[327119239,1715842241619,-500.0,0.00011768,2]
[327119241,1715842241629,-500.0,0.00011768,2]
[327119243,1715842241641,-500.0,0.00011768,2]
[327119245,1715842241650,-500.0,0.00011768,2]
[327119247,1715842241659,-500.0,0.00011768,2]
[327119248,1715842241669,-500.0,0.00011768,2]
[327119251,1715842241678,-175.32066824,0.00011768,2]
[327119253,1715842241688,-500.0,0.00011768,2]
[327119255,1715842241698,-500.0,0.00011768,2]
[327119257,1715842241707,-500.0,0.00011768,2]
[327119259,1715842241718,-500.0,0.00011768,2]
[327119261,1715842241730,-500.0,0.00011768,2]
[327119263,1715842241740,-500.0,0.00011768,2]
[327119266,1715842241760,-500.0,0.00011768,2]
[327119269,1715842241778,-500.0,0.00011768,2]
[327119272,1715842241798,-500.0,0.00011768,2]
[327119275,1715842241818,-500.0,0.00011768,2]
[327119278,1715842241835,-500.0,0.00011768,2]
[327119281,1715842241856,-500.0,0.00011768,2]
[327119283,1715842241871,-387.49561249,0.00011768,2]
[327119286,1715842241887,-500.0,0.00011768,2]
[327119289,1715842241905,-500.0,0.00011768,2]
[327119292,1715842241924,-500.0,0.00011768,2]
[327119294,1715842241936,-500.0,0.00011768,2]
[327119297,1715842241953,-500.0,0.00011768,2]
[327119300,1715842241968,-500.0,0.00011768,2]
[327119302,1715842241985,-500.0,0.00011768,2]
[327119305,1715842242000,-500.0,0.00011768,2]
[327119308,1715842242014,-500.0,0.00011768,2]
[327119310,1715842242030,-500.0,0.00011768,2]
[327119313,1715842242049,-523.71571437,0.00011768,2]
[327119316,1715842242066,-500.0,0.00011768,2]
[327119318,1715842242080,-500.0,0.00011768,2]
[327119321,1715842242095,-500.0,0.00011768,2]
[327119324,1715842242110,-500.0,0.00011768,2]
[327119326,1715842242125,-500.0,0.00011768,2]
[327119329,1715842242141,-500.0,0.00011768,2]
[327119332,1715842242156,-500.0,0.00011768,2]
[327119334,1715842242171,-500.0,0.00011768,2]
[327119337,1715842242185,-500.0,0.00011768,2]
[327119340,1715842242200,-500.0,0.00011768,2]
[327119342,1715842242215,-500.0,0.00011768,2]
[327119345,1715842242230,-500.0,0.00011768,2]
[327119347,1715842242245,-500.0,0.00011768,2]
[327119350,1715842242260,-500.0,0.00011768,2]
[327119352,1715842242276,-500.0,0.00011768,2]
[327119355,1715842242291,-500.0,0.00011768,2]
[327119357,1715842242305,-500.0,0.00011768,2]
[327119360,1715842242320,-500.0,0.00011768,2]
[327119363,1715842242335,-500.0,0.00011768,2]
[327119365,1715842242351,-500.0,0.00011768,2]
[327119368,1715842242367,-500.0,0.00011768,2]
[327119371,1715842242383,-500.0,0.00011768,2]
[327119373,1715842242399,-500.0,0.00011768,2]
[327119376,1715842242415,-500.0,0.00011768,2]
[327119378,1715842242431,-500.0,0.00011768,2]
[327119381,1715842242446,-500.0,0.00011768,2]
[327119384,1715842242460,-500.0,0.00011768,2]
[327119386,1715842242475,-500.0,0.00011768,2]
[327119389,1715842242490,-500.0,0.00011768,2]
[327119392,1715842242505,-500.0,0.00011768,2]
[327119394,1715842242520,-500.0,0.00011768,2]
[327119397,1715842242535,-500.0,0.00011768,2]
[327119400,1715842242550,-500.0,0.00011768,2]
[327119402,1715842242565,-500.0,0.00011768,2]
[327119405,1715842242580,-626.21436728,0.00011768,2]
[327119408,1715842242595,-500.0,0.00011768,2]
[327119410,1715842242609,-500.0,0.00011768,2]
[327119412,1715842242625,-500.0,0.00011768,2]
[327119413,1715842242640,-634.63491118,0.00011768,2]
[327119414,1715842242655,-500.0,0.00011768,2]
[327119415,1715842242671,-500.0,0.00011768,2]
[327119416,1715842242686,-500.0,0.00011768,2]
[327119417,1715842242701,-500.0,0.00011768,2]
[327119418,1715842242717,-500.0,0.00011768,2]
[327119419,1715842242732,-500.0,0.00011768,2]
[327119420,1715842242750,-500.0,0.00011768,2]
[327119421,1715842242764,-506.57630473,0.00011768,2]
[327119422,1715842242778,-500.0,0.00011768,2]
[327119423,1715842242793,-500.0,0.00011768,2]
[327119424,1715842242809,-500.0,0.00011768,2]
[327119425,1715842242823,-500.0,0.00011768,2]
[327119426,1715842242839,-500.0,0.00011768,2]
[327119427,1715842242859,-500.0,0.00011768,2]
[327119428,1715842242873,-500.0,0.00011768,2]
[327119429,1715842242890,-500.0,0.00011768,2]
[327119430,1715842242905,-510.15706946,0.00011768,2]
[327119431,1715842242921,-500.0,0.00011768,2]
[327119432,1715842242936,-500.0,0.00011768,2]
[327119433,1715842242951,-500.0,0.00011768,2]
[327119434,1715842242966,-500.0,0.00011768,2]
[327119435,1715842243121,-500.0,0.00011768,2]
[327119436,1715842243153,-500.0,0.00011768,2]
[327119437,1715842243162,-500.0,0.00011768,2]
[327119438,1715842243172,-500.0,0.00011768,2]
[327119439,1715842243181,-500.0,0.00011768,2]
[327119440,1715842243191,-502.4523065,0.00011768,2]
[327119441,1715842243201,-500.0,0.00011768,2]
[327119442,1715842243210,-500.0,0.00011768,2]
[327119443,1715842243220,-500.0,0.00011768,2]
[327119444,1715842243229,-504.08330288,0.00011768,2]
[327119445,1715842243239,-500.0,0.00011768,2]
[327119446,1715842243248,-500.0,0.00011768,2]
[327119447,1715842243258,-500.0,0.00011768,2]
[327119448,1715842243267,-500.0,0.00011768,2]
[327119449,1715842243276,-500.0,0.00011768,2]
[327119450,1715842243285,-500.0,0.00011768,2]
[327119451,1715842243296,-503.25678182,0.00011768,2]
[327119452,1715842243305,-500.0,0.00011768,2]
[327119453,1715842243316,-500.0,0.00011768,2]
[327119454,1715842243327,-500.0,0.00011768,2]
[327119457,1715842243335,-500.0,0.00011768,2]
[327119459,1715842243345,-500.0,0.00011768,2]
[327119461,1715842243355,-500.0,0.00011768,2]
[327119463,1715842243365,-500.0,0.00011768,2]
[327119465,1715842243373,-500.0,0.00011768,2]
[327119466,1715842243383,-500.0,0.00011768,2]
[327119467,1715842243393,-500.0,0.00011768,2]
[327119468,1715842243403,-500.0,0.00011768,2]
[327119469,1715842243411,-500.0,0.00011768,2]
[327119470,1715842243420,-500.0,0.00011768,2]
[327119471,1715842243429,-500.0,0.00011768,2]
[327119472,1715842243439,-500.0,0.00011768,2]
[327119473,1715842243448,-500.0,0.00011768,2]
[327119474,1715842243457,-500.0,0.00011768,2]
[327119475,1715842243466,-500.0,0.00011768,2]
[327119476,1715842243475,-500.0,0.00011768,2]
[327119477,1715842243484,-560.06502361,0.00011768,2]
[327119478,1715842243494,-500.0,0.00011768,2]
[327119479,1715842243503,-500.0,0.00011768,2]
[327119482,1715842243512,-500.0,0.00011768,2]
[327119483,1715842243522,-500.0,0.00011768,2]
[327119484,1715842243531,-500.0,0.00011768,2]
[327119485,1715842243540,-500.0,0.00011768,2]
[327119486,1715842243549,-500.0,0.00011768,2]
[327119487,1715842243559,-500.0,0.00011768,2]
[327119488,1715842243568,-507.31433372,0.00011768,2]
[327119489,1715842243577,-500.0,0.00011768,2]
[327119490,1715842243587,-626.91938241,0.00011768,2]
[327119491,1715842243596,-506.75033733,0.00011768,2]
[327119492,1715842243605,-500.0,0.00011768,2]
[327119493,1715842243614,-505.57978779,0.00011768,2]
[327119494,1715842243623,-520.46152932,0.00011768,2]
[327119495,1715842243633,-500.0,0.00011768,2]
[327119496,1715842243642,-500.0,0.00011768,2]
[327119497,1715842243651,-500.0,0.00011768,2]
[327119498,1715842243660,-500.0,0.00011768,2]
[327119499,1715842243669,-500.0,0.00011768,2]
[327119500,1715842243678,-500.0,0.00011768,2]